[Event "Finnish Senior Championship 2022"]
[Site "Helsinki"]
[Date "2022.04.23"]
[Round "9.2"]
[White "Kivipelto, Kaj"]
[Black "Patola, Eero"]
[Result "1-0"]
[ECO "A06"]
[WhiteElo "2129"]
[BlackElo "1809"]
[Annotator "TA"]
[PlyCount "67"]
[EventDate "2022.04.15"]
[EventType "swiss"]
[EventCountry "FIN"]
[SourceTitle "playchess.com"]
[Source "ChessBase"]
[SourceQuality "1"]
[TimeControl "40/5400+30:1800+30"]

{[%evp 9,67,13,48,42,38,18,30,27,48,23,63,33,49,21,15,6,79,96,123,123,237,245,270,181,368,347,415,421,426,427,411,420,455,380,365,333,524,522,578,517,573,570,628,554,631,599,595,579,747,749,1211,1202,1199,1198,1202,1159,1130,1122,29997,29997]} 1. b3 {[%emt 0:00:36]} d5 {[%emt 0:13:10]} 2. Bb2 {[%emt 0:00:37]} c5 {[%emt 0:00:39]} 3. e3 {[%emt 0:06:46]} Nf6 {[%emt 0:01:25]} 4. Nf3 {[%emt 0:01:16]} a6 {[%emt 0:01:44]} 5. c4 {[%emt 0:02:13]} Bg4 {[%emt 0:01:16][%cal Od5d4]} 6. cxd5 {[%emt 0:09:11] A06: Réti Opening: 1 Nf3 d5.} Nxd5 {[%emt 0:05:54] [#]} 7. a3 $146 {[%emt 0:00:27]} ({Predecessor:} 7. Nc3 Nb4 8. h3 Bh5 9. a3 Nd3+ 10. Bxd3 Qxd3 11. Ne5 Qf5 12. Nf3 Bxf3 13. gxf3 {0-1 (41) Traversi,C (1585)-Bruening,W (1891) Bad Woerishofen 2015}) 7... e6 {[%emt 0:00:44]} 8. Be2 {[%emt 0:01:09] White has an edge.} Nd7 {[%emt 0:01:34]} 9. O-O {[%emt 0:04:18]} Qc7 {[%emt 0:00:23]} 10. Qc2 {[%emt 0:06:39]} N5f6 {[%emt 0:02:16]} 11. d4 {[%emt 0:09:54]} Bf5 {[%emt 0:03:06]} 12. Bd3 {[%emt 0:05:33]} Bg4 {[%emt 0:07:21]} (12... Bxd3 $11 {remains equal.} 13. Qxd3 cxd4) 13. Nbd2 $16 {[%emt 0:00:36] White leaves nothing to chance now.} Rc8 {[%emt 0:03:44]} 14. Rac1 {[%emt 0:05:47][%cal Ob3b4,Ba1c1,Bc1c8,Bc8c4,Bc4d4][%mdl 32]} Nd5 {[%emt 0:03:13] Against b4} (14... Bxf3 $16 {keeps fighting.} 15. Nxf3 Qb8) 15. dxc5 $18 {[%emt 0:13:59]} Nxc5 {[%emt 0:02:22]} 16. Be5 {[%emt 0:05:43]} ({Much less strong is} 16. Bxh7 Nd7 17. Qe4 Qb8 18. Rxc8+ Qxc8 $18) 16... Qd7 {[%emt 0:03:02] [#]} (16... Nxd3 17. Bxc7 Nxc1) 17. b4 {[%emt 0:00:38]} Nxd3 {[%emt 0:05:26]} 18. Qxc8+ {[%emt 0:00:16]} Qxc8 {[%emt 0:00:15]} 19. Rxc8+ {[%emt 0:00:12]} Kd7 {[%emt 0:00:13]} 20. Rc4 {[%emt 0:05:53]} Bh5 {[%emt 0:03:28]} 21. Rd4 {[%emt 0:01:33]} Nxe5 {[%emt 0:02:21]} 22. Nxe5+ {[%emt 0:00:21]} Ke8 {[%emt 0:01:29]} (22... Ke7 $142 23. g4 f6 24. Nc6+ bxc6) 23. Rc1 {[%emt 0:01:16]} f6 {[%emt 0:00:53]} 24. Rc8+ {[%emt 0:01:27]} Ke7 {[%emt 0:00:17]} 25. Nd3 {[%emt 0:03:17]} Kd7 {[%emt 0:01:36]} 26. Rc1 {[%emt 0:00:59]} f5 {[%emt 0:03:56]} 27. e4 {[%emt 0:01:47]} fxe4 {[%emt 0:00:26]} 28. Nxe4 {[%emt 0:00:08]} b6 {[%emt 0:01:38]} 29. Ne5+ {[%emt 0:01:01]} Kd8 {[%emt 0:01:56]} 30. Rc6 {[%emt 0:01:40][%csl LRb6,LRe6]} Ke7 {[%emt 0:01:26]} 31. Ng5 {[%emt 0:02:54]} Kf6 {[%emt 0:01:36]} 32. Rxe6+ {[%emt 0:00:48]} Kxg5 {[%emt 0:01:19]} 33. Rxd5 {[%emt 0:00:21] [#] White threatens Nd3+ and mate.} Bg4 {[%emt 0:03:53]} 34. Nxg4+ {[%emt 0:00:20] Weighted Error Value: White=0.18 (very precise) /Black=0.88} 1-0

[Event "Finnish Senior Championship 2022"]
[Site "Helsinki"]
[Date "2022.04.23"]
[Round "9.3"]
[White "Hietala, Pekka"]
[Black "Lehtela, Antti"]
[Result "1-0"]
[ECO "A18"]
[WhiteElo "1925"]
[BlackElo "1632"]
[Annotator "TA"]
[PlyCount "67"]
[EventDate "2022.04.15"]
[EventType "swiss"]
[EventCountry "FIN"]
[SourceTitle "playchess.com"]
[Source "ChessBase"]
[SourceQuality "1"]
[TimeControl "40/5400+30:1800+30"]

{[%evp 9,67,56,62,48,59,57,86,48,85,44,87,91,154,164,237,226,244,164,202,230,410,362,369,0,0,0,0,-81,313,29,283,286,514,464,888,882,1148,1140,1123,1025,1000,1023,971,956,1626,1306,1235,542,663,649,660,669,687,525,1095,808,1421,1131,1098,1074]} 1. c4 {[%emt 0:00:05]} Nf6 {[%emt 0:00:07]} 2. Nc3 {[%emt 0:00:15]} e6 {[%emt 0:00:36]} 3. e4 {[%emt 0:00:47]} Nc6 {[%emt 0:03:05]} 4. d4 {[%emt 0:05:10]} d6 {[%emt 0:02:12]} 5. Be2 {[%emt 0:04:17]} Be7 {[%emt 0:06:04]} 6. Be3 {[%emt 0:05:49] A18: English Opening: Flohr-Mikenas System (1 c4 Nf6 2 Nc3 e6 3 e4).} O-O {[%emt 0:03:28]} 7. Nf3 {[%emt 0:01:31] [#]} b6 $146 {[%emt 0:05:31]} ({Predecessor:} 7... d5 8. e5 Ne4 9. Bd3 Nxc3 10. bxc3 f5 11. exf6 Bxf6 12. Qc2 h6 13. O-O Na5 14. cxd5 exd5 {1-0 (43) Rulfs,E (2047)-Schwedek,T GER email 2013}) 8. h3 {[%emt 0:01:28] White is better.} Bb7 {[%emt 0:01:12]} 9. a3 {[%emt 0:01:29]} Rc8 {[%emt 0:12:20]} 10. Qc2 {[%emt 0:02:25] White is more active.} d5 {[%emt 0:10:49]} (10... Nd7 $142) 11. e5 {[%emt 0:03:31]} Ne8 {[%emt 0:00:13]} (11... Ne4 {keeps fighting.}) 12. cxd5 $18 {[%emt 0:00:38]} exd5 {[%emt 0:00:13]} 13. Bd3 {[%emt 0:01:03]} g6 {[%emt 0:00:44][%cal Oc6d4] [#]} 14. h4 $1 {[%emt 0:02:15] h5 is the strong threat.} f5 $2 {[%emt 0:50:56]} (14... Nxd4 {was necessary.} 15. Nxd4 c5) 15. exf6 {[%emt 0:00:36]} Bxf6 {[%emt 0:00:00]} 16. Bxg6 $2 {[%emt 0:19:29]} hxg6 $11 {[%emt 0:00:00]} 17. Qxg6+ {[%emt 0:02:22]} Bg7 $1 {[%emt 0:00:00]} 18. Ng5 {[%emt 0:01:11] [#]} (18. h5 $1 $11 {remains equal.} Qd6 19. Qg5) 18... Rf6 $2 {[%emt 0:00:00][%mdl 8192] White leaves nothing to chance now.} (18... Nf6 $1 $17 {keeps the pressure on. Threatens to win with ...Ne7.} 19. Ne6 Qd7 20. Nxf8 Rxf8) 19. Qh7+ $18 {[%emt 0:00:27]} Kf8 {[%emt 0:00:00]} 20. h5 {[%emt 0:09:14] Really sharp!} Qd6 $2 {[%emt 0:00:00]} (20... Bh6 21. O-O-O Ng7) 21. h6 {[%emt 0:04:04] White is clearly winning.} Rg6 {[%emt 0:00:00]} (21... Rxh6 $2 22. Rxh6 Nf6 23. Qg6) (21... Qd7 $142 22. hxg7+ Qxg7 23. Nxd5 Qxh7 24. Nxh7+ Kg7 25. Nhxf6 Nxf6 26. Nxf6 Kxf6) 22. hxg7+ {[%emt 0:00:51]} Rxg7 {[%emt 0:00:00]} 23. Qf5+ {[%emt 0:00:51]} Kg8 {[%emt 0:00:00]} 24. Qh3 {[%emt 0:04:47][%csl Gh1][%cal Rh3h8]} Kf8 {[%emt 0:00:00]} 25. Ne6+ {[%emt 0:01:33]} Kf7 {[%emt 0:00:00]} 26. Qf5+ {[%emt 0:01:36]} Kg8 {[%emt 0:00:00]} 27. Nxg7 {[%emt 0:01:12]} Nxg7 {[%emt 0:00:00]} 28. Qg4 {[%emt 0:03:23]} (28. Qh7+ $142 Kf7 29. Rh6) 28... Re8 {[%emt 0:00:00]} 29. O-O-O {[%emt 0:01:46]} Bc8 {[%emt 0:00:00]} 30. Qg5 {[%emt 0:00:45]} Bf5 {[%emt 0:00:00]} 31. Rh6 {[%emt 0:00:30]} ({Weaker is} 31. Qh4 Na5 32. Rd2 Qg6 $16) 31... Qd7 {[%emt 0:00:00]} 32. Rdh1 {[%emt 0:00:51] Black must now prevent Qf6.} Ne7 {[%emt 0:00:00]} 33. Qf6 {[%emt 0:00:54][%csl Gh1][%cal Rh6h8]} Ng6 {[%emt 0:00:00] Prevents Rh8+.} 34. Rxg6 {[%emt 0:00:21] Weighted Error Value: White=0.64/Black=0.83} 1-0

[Event "Finnish Senior Championship 2022"]
[Site "Helsinki"]
[Date "2022.04.23"]
[Round "9.4"]
[White "Aakio, Seppo"]
[Black "Kukkonen, Martti"]
[Result "1-0"]
[ECO "B84"]
[WhiteElo "2051"]
[BlackElo "1462"]
[Annotator "TA"]
[PlyCount "61"]
[EventDate "2022.04.15"]
[EventType "swiss"]
[EventCountry "FIN"]
[SourceTitle "playchess.com"]
[Source "ChessBase"]
[SourceQuality "1"]
[TimeControl "40/5400+30:1800+30"]

{[%evp 16,61,23,30,64,49,50,41,164,115,113,104,112,103,91,89,285,270,281,253,250,267,293,302,308,306,316,235,254,234,252,254,303,289,314,327,586,560,708,681,1295,1177,29992,29993,29997,29998,29998,29999]} 1. e4 {[%emt 0:00:05]} c5 {[%emt 0:00:04]} 2. Nf3 {[%emt 0:01:09]} d6 {[%emt 0:00:16]} 3. d4 {[%emt 0:00:08]} cxd4 {[%emt 0:00:09]} 4. Nxd4 {[%emt 0:00:02]} Nc6 {[%emt 0:00:11]} 5. Nc3 {[%emt 0:01:00]} a6 {[%emt 0:00:13]} 6. Be3 {[%emt 0:02:26]} Nf6 {[%emt 0:01:47]} 7. Be2 {[%emt 0:05:46]} Qc7 {[%emt 0:01:51]} 8. O-O {[%emt 0:01:04]} e6 {[%emt 0:00:15]} 9. f4 {[%emt 0:02:11]} g6 {[%emt 0:02:09] B84: Sicilian Scheveningen: 6 Be2 a6, lines without early Be3.} 10. Kh1 {[%emt 0:12:34]} Bg7 $1 {[%emt 0:04:05] [#]} 11. Qd2 $146 {[%emt 0:07:42]} ({Predecessor:} 11. Nxc6 bxc6 12. e5 Nd5 13. Nxd5 cxd5 14. exd6 Qxd6 15. Bd4 f6 16. c4 e5 17. fxe5 fxe5 {0-1 (41) Shim Ng Min,F (1124)-Churyaev,A (1075) LSS email 2020}) 11... b5 {[%emt 0:02:47] [#]} ({Black should try} 11... Nxd4 $14 12. Qxd4 O-O) 12. Bxb5 {[%emt 0:00:53]} axb5 $16 {[%emt 0:01:49]} 13. Ndxb5 {[%emt 0:00:03]} Qd7 {[%emt 0:11:06]} 14. Nxd6+ {[%emt 0:00:17]} Kf8 {[%emt 0:02:16]} 15. e5 $36 {[%emt 0:00:53][%mdl 3072] White has strong compensation. White is really pushing. White is more active.} Ng8 {[%emt 0:03:17]} (15... Ne8 $16) 16. Bc5 $18 {[%emt 0:01:24]} Nge7 {[%emt 0:00:40]} 17. Rad1 {[%emt 0:01:42]} Kg8 {[%emt 0:01:45]} 18. Qf2 {[%emt 0:08:26]} Ba6 {[%emt 0:04:33]} 19. Rfe1 {[%emt 0:04:38]} Qc7 {[%emt 0:01:24]} 20. b4 {[%emt 0:00:17]} Bb7 {[%emt 0:02:02]} 21. Ncb5 {[%emt 0:05:24]} Qb8 {[%emt 0:01:06]} 22. c4 {[%emt 0:00:19]} h5 {[%emt 0:02:52]} 23. Rd2 {[%emt 0:07:39]} h4 {[%emt 0:01:51]} 24. h3 {[%emt 0:00:19]} Nf5 {[%emt 0:02:43]} 25. Nxf5 {[%emt 0:00:33]} exf5 {[%emt 0:04:19]} (25... gxf5 26. Rd7 Nxb4) 26. e6 {[%emt 0:05:34] [#] Black must now prevent exf7+.} fxe6 {[%emt 0:00:42]} 27. Rxe6 {[%emt 0:00:20]} Kf7 {[%emt 0:02:43]} 28. Qe3 {[%emt 0:07:33] Rd7+ would kill now.} Bf6 {[%emt 0:08:34]} 29. Rd7+ {[%emt 0:00:15] White mates.} Be7 {[%emt 0:02:47]} 30. Rexe7+ {[%emt 0:00:09]} Nxe7 {[%emt 0:00:21]} 31. Qxe7+ {[%emt 0:00:06] Weighted Error Value: White=0.09 (flawless) /Black=0.86} 1-0

[Event "Finnish Senior Championship 2022"]
[Site "Helsinki"]
[Date "2022.04.23"]
[Round "9.5"]
[White "Raitanen, Markku"]
[Black "Lyly, Seppo"]
[Result "1-0"]
[ECO "B80"]
[WhiteElo "1813"]
[BlackElo "1908"]
[Annotator "TA"]
[PlyCount "98"]
[EventDate "2022.04.15"]
[EventType "swiss"]
[EventCountry "FIN"]
[SourceTitle "playchess.com"]
[Source "ChessBase"]
[SourceQuality "1"]
[TimeControl "40/5400+30:1800+30"]

{[%evp 19,98,17,10,0,0,0,5,-2,43,-15,0,-3,0,-49,51,0,0,-15,-21,-25,27,8,73,46,106,56,145,150,146,147,190,176,161,111,295,118,260,258,263,256,250,269,261,262,243,-60,333,314,312,320,346,263,244,221,328,295,814,122,383,393,793,780,639,185,168,127,266,320,1168,1175,937,908,1172,502,732,610,1783,272,252,220,29980]} 1. e4 {[%emt 0:00:34]} c5 {[%emt 0:00:10]} 2. d4 {[%emt 0:00:49]} e6 {[%emt 0:02:27]} 3. Nf3 {[%emt 0:01:03]} cxd4 {[%emt 0:00:19]} 4. Nxd4 {[%emt 0:00:18]} Nc6 {[%emt 0:00:16]} 5. Nc3 {[%emt 0:01:31]} a6 {[%emt 0:00:22]} 6. g3 {[%emt 0:02:26]} Nf6 {[%emt 0:00:48]} 7. Bg2 {[%emt 0:00:46]} Qc7 {[%emt 0:01:39]} 8. O-O {[%emt 0:01:14]} Be7 {[%emt 0:01:02]} 9. Be3 {[%emt 0:01:48]} O-O {[%emt 0:00:31]} 10. Qe2 {[%emt 0:03:09]} d6 {[%emt 0:02:57]} 11. Nb3 {[%emt 0:05:48] B80: Sicilian Scheveningen: 6 g3 and 6 Be3, including English Attack.} Rb8 {[%emt 0:04:39]} 12. a4 {[%emt 0:06:20]} b6 {[%emt 0:02:42] Inhibits a5.} 13. f4 {[%emt 0:02:18] The position is equal.} Bb7 {[%emt 0:02:39]} 14. h3 {[%emt 0:02:31]} (14. g4 $14) 14... Nd7 {[%emt 0:06:37] [#]} 15. Rfd1 $146 {[%emt 0:08:38]} ({Predecessor:} 15. Qf2 Ba8 16. Rad1 Nc5 17. Rfe1 Rbc8 18. Kh2 Qb8 19. Bf1 Bb7 20. Nd4 Nb4 21. Bg2 {0-1 (28) Jaramillo,V (2203)-Morales,J (2346) Cali 2016}) 15... Rfc8 {[%emt 0:13:01]} 16. f5 {[%emt 0:01:07]} (16. Rd2 $11) 16... exf5 {[%emt 0:00:57]} ({Black should try} 16... Bf6 $15) 17. exf5 {[%emt 0:00:44]} (17. Nd5 $14 Qd8 18. exf5) 17... Nce5 {[%emt 0:02:59]} 18. Bxb7 {[%emt 0:02:25]} Qxb7 {[%emt 0:00:38]} 19. Nd5 {[%emt 0:02:30]} Bf8 {[%emt 0:01:56]} (19... Bd8 $142) 20. Bf4 {[%emt 0:05:49]} f6 {[%emt 0:03:52]} (20... Nc4 $11 {keeps the balance.}) 21. g4 {[%emt 0:01:51] 0x0.000f65284f8cdp-1022s more active pieces.} Rc4 {[%emt 0:01:59]} (21... Qc6 $14) 22. Rd2 {[%emt 0:04:40]} (22. Qg2 $16) 22... Rbc8 {[%emt 0:03:28]} (22... Rcc8 $14) 23. Qg2 $1 $16 {[%emt 0:01:31]} Kh8 {[%emt 0:04:03][%cal Oc4c2]} 24. Nd4 {[%emt 0:12:03]} b5 {[%emt 0:05:19] [#]} 25. axb5 {[%emt 0:03:49]} axb5 {[%emt 0:00:12]} 26. Ne6 {[%emt 0:01:14]} ({Better is} 26. b3 $18 R4c5 27. Ne6) 26... Qc6 {[%emt 0:04:57]} (26... Ra4 $16 27. Re1 Nb6) 27. c3 {[%emt 0:04:17]} (27. b3 $18 {and White stays clearly on top.} Rc3 28. Nxc3 Qxc3 29. Ra8) 27... b4 {[%emt 0:00:56]} (27... Nc5 $16) 28. Bxe5 $18 {[%emt 0:02:00]} ({But not} 28. cxb4 $6 Rc1+ 29. Rxc1 Qxc1+ 30. Kh2 Qc4 31. Bxe5 fxe5 $18) (28. Nxb4 Qxg2+ 29. Kxg2 Re4 30. Bxe5 Nxe5 $18) 28... Nxe5 {[%emt 0:00:53]} 29. Nxb4 {[%emt 0:01:21]} Qb6+ {[%emt 0:08:12]} 30. Kh2 {[%emt 0:03:03]} Qe3 {[%emt 0:01:12][%cal Oe3d2]} 31. Re2 {[%emt 0:03:45]} Qh6 {[%emt 0:07:16]} 32. Nd4 $2 {[%emt 0:05:55] [#]} (32. Kg1 $18) 32... Qg5 $2 {[%emt 0:08:37][%mdl 8192]} (32... Rxb4 $1 $15 {keeps the upper hand.} 33. g5 Qh4) 33. Nd5 {[%emt 0:03:34]} Rb8 {[%emt 0:02:21]} 34. Qg3 {[%emt 0:01:31] Prevents Qh4.} h5 {[%emt 0:01:22]} 35. gxh5 {[%emt 0:01:17]} Qxh5 {[%emt 0:00:19][%cal Oc4d4]} 36. Nf4 {[%emt 0:01:32] Pair of Knights!} Qh7 {[%emt 0:02:33]} (36... Qg5 $142 37. Qxg5 fxg5) 37. Rg1 {[%emt 0:01:41] Hoping for b3.} Rb7 {[%emt 0:02:19]} (37... Qh6 38. Kh1 Kg8) 38. Nde6 $2 {[%emt 0:00:47]} (38. Ng6+ $18 {is more deadly.} Kg8 39. Qg2) 38... Rxf4 $4 {[%emt 0:01:00][%mdl 8192]} 39. Qxf4 {[%emt 0:01:04] Really sharp!} ({Less strong is} 39. Nxf4 Qxf5 40. Rf2 Rf7 $18) 39... Rf7 {[%emt 0:00:26]} (39... Qh5) 40. Reg2 {[%emt 0:00:46]} Qh5 {[%emt 0:01:59]} 41. b4 $2 {[%emt 0:30:40]} (41. Ra1) 41... Nf3+ {[%emt 0:30:19]} 42. Kh1 {[%emt 0:00:29] Strongly threatening Qg4.} Nxg1 {[%emt 0:00:31]} (42... Qxh3+ $16 {is a better defense.} 43. Rh2 Nxh2 44. Qxh2 Qxh2+ 45. Kxh2 d5) 43. Kxg1 {[%emt 0:00:11]} (43. Rxg1 Qxh3+ 44. Qh2 Qxh2+ 45. Kxh2 d5 $16) 43... Be7 $2 {[%emt 0:00:00]} (43... Kg8 44. Kh2 Qd1) 44. Rg4 {[%emt 0:00:00] Threatening mate with Rh4.} Kg8 {[%emt 0:00:00]} 45. Qf3 {[%emt 0:00:00]} Qh6 {[%emt 0:00:00]} 46. Kh2 {[%emt 0:00:00]} (46. Nf4 $142 {And now Qd5 would win.} Kh7 47. Qd5) 46... Bf8 {[%emt 0:00:00]} 47. b5 {[%emt 0:00:00] aiming for Nf4.} Ra7 {[%emt 0:00:00]} 48. b6 $2 {[%emt 0:00:00]} (48. Qd5) 48... Ra2+ {[%emt 0:00:00]} 49. Rg2 {[%emt 0:00:00]} Ra5 $2 {[%emt 0:00:00] Weighted Error Value: White=0.97/Black=0.74} (49... Rxg2+ $18 50. Kxg2 Qd2+ 51. Qf2 (51. Kg3 Qe1+ 52. Kg2 Qd2+ 53. Qf2 Qd5+ 54. Kg3 Qe5+ 55. Kg4 Qb5 $18) 51... Qd5+ 52. Kg3 (52. Qf3 Qb5 $18) 52... Qe5+ 53. Kg4 d5) 1-0